fUSD/lending_fUSD_20251206
["ID","MTS","AMOUNT","RATE_DAILY","PERIOD"]
[396527889,1765036489706,-570.26451729,0.0001315,2]
[396527891,1765036493049,-166.27444294,0.0001315,2]
[396527892,1765036495237,-200.0,0.0001315,2]
[396527893,1765036496444,-157.96758673,0.0001315,2]
[396527895,1765036498574,-363.90371087,0.0001315,2]
[396527896,1765036500229,-305.64313115,0.0001315,2]
[396527898,1765036501375,300.0,0.00013149,2]
[396527899,1765036501446,1200.0,0.00013149,2]
[396527900,1765036501518,300.0,0.00013149,2]
[396527901,1765036503043,-300.0,0.0001315,2]
[396527902,1765036506559,-249.84,0.0001315,2]
[396527904,1765036508860,-300.0,0.0001315,2]
[396527907,1765036513370,-570.10975814,0.0001315,2]
[396527910,1765036517116,-300.0,0.0001315,2]
[396527912,1765036520168,-341.03947196,0.0001315,2]
[396527913,1765036520799,1400.9,0.00025,120]
[396527915,1765036527788,216.7182593,0.0001305,2]
[396527916,1765036528074,-240.05034171,0.0001315,2]
[396527917,1765036529433,-451.94737082,0.0001315,2]
[396527919,1765036533744,-167.26176925,0.0001315,2]
[396527920,1765036535894,-211.61442592,0.0001315,2]
[396527921,1765036537720,-153.67,0.0001315,2]
[396527923,1765036541123,-176.80672308,0.0001315,2]
[396527924,1765036545810,-188.98395667,0.0001315,2]
[396527926,1765036550583,-335.12932025,0.0001315,2]
[396527927,1765036553453,-207.95261956,0.0001315,2]
[396527928,1765036553748,1315.582396,0.00013084,2]
[396527930,1765036560497,-176.82166749,0.0001315,2]
[396527931,1765036561363,300.0,0.00013149,2]
[396527932,1765036561848,-199.18539537,0.0001315,2]
[396527934,1765036564085,-170.65304143,0.0001315,2]
[396527935,1765036565944,-275.79185815,0.0001315,2]
[396527936,1765036567879,-158.01068952,0.0001315,2]
[396527937,1765036568970,384.77428705,0.00013149,2]
[396527941,1765036571199,-348.45501906,0.0001315,2]
[396527942,1765036576632,-363.11935683,0.0001315,2]
[396527945,1765036578731,-237.47725156,0.0001315,2]
[396527948,1765036580371,-240.1310733,0.0001315,2]
[396527949,1765036582386,-244.52844755,0.0001315,2]
[396527950,1765036585208,-227.50151243,0.0001315,2]
[396527952,1765036588018,-194.35665246,0.0001315,2]
[396527953,1765036589862,-224.44765567,0.0001315,2]
[396527954,1765036593425,-325.75017195,0.0001315,2]
[396527956,1765036595978,-192.32018216,0.0001315,2]
[396527957,1765036597611,-165.34225733,0.0001315,2]
[396527958,1765036599670,-5444.3279723,0.0001315,2]
[396527959,1765036600229,-10000.01,0.0001315,2]
[396527960,1765036600509,-240.39871948,0.0001315,2]
[396527961,1765036600702,-10000.01,0.0001315,2]
[396527962,1765036601081,-10000.01,0.0001315,2]
[396527963,1765036601312,-10000.01,0.0001315,2]
[396527964,1765036601542,-10000.01,0.0001315,2]
[396527965,1765036602803,-10000.01,0.0001315,2]
[396527966,1765036602878,-10000.01,0.0001315,2]
[396527968,1765036602962,-10000.01,0.0001315,2]
[396527969,1765036603053,-10000.01,0.0001315,2]
[396527970,1765036603646,-499.07298463,0.0001315,2]
[396527972,1765036617316,-339.31090162,0.0001315,2]
[396527973,1765036618176,529.00687304,0.00015122,7]
[396527975,1765036619021,-722.35562766,0.0001315,2]
[396527977,1765036622165,-168.79,0.0001315,2]
[396527978,1765036624490,150.0,0.00013149,2]
[396527979,1765036624650,-357.825791,0.0001315,2]
[396527980,1765036626458,-219.80371756,0.0001315,2]
[396527982,1765036629884,-477.0899527,0.0001315,2]
[396527983,1765036631528,-153.67,0.0001315,2]
[396527984,1765036634778,-234.86319066,0.0001315,2]
[396527989,1765036637483,-180.16566573,0.0001315,2]
[396527993,1765036640099,-170.64038238,0.0001315,2]
[396527994,1765036641711,-228.14774148,0.0001315,2]
[396527996,1765036645436,-166.90941815,0.0001315,2]
[396527997,1765036647409,-209.96931951,0.0001315,2]
[396527998,1765036650138,-158.11192561,0.0001315,2]
[396528000,1765036654063,-300.67660326,0.0001315,2]
[396528001,1765036655792,-389.44625338,0.0001315,2]
[396528004,1765036658463,-411.92500695,0.0001315,2]
[396528006,1765036662175,-192.9188133,0.0001315,2]
[396528007,1765036665124,-182.95225485,0.0001315,2]
[396528008,1765036666776,-313.51141872,0.0001315,2]
[396528010,1765036669769,-306.95217498,0.0001315,2]
[396528011,1765036671355,-282.09713267,0.0001315,2]
[396528012,1765036672803,307.76275327,0.0001305,2]
[396528013,1765036673578,-257.63706614,0.0001315,2]
[396528014,1765036675179,-255.28695729,0.0001315,2]
[396528016,1765036676942,570.0,0.00013149,2]
[396528017,1765036678045,-341.18446876,0.0001315,2]
[396528018,1765036680821,-157.26744825,0.0001315,2]
[396528021,1765036686586,-170.27511459,0.0001315,2]
[396528022,1765036688720,-345.4948306,0.0001315,2]
[396528026,1765036696594,-290.40980703,0.0001315,2]
[396528027,1765036698796,-154.5051694,0.0001315,2]
[396528028,1765036699225,635.90463763,0.00013149,2]
[396528034,1765036701210,-193.61000017,0.0001315,2]
[396528036,1765036701532,158.8,7.384e-05,2]
[396528041,1765036703814,-273.06277592,0.0001315,2]
[396528043,1765036705951,-264.89030231,0.0001315,2]
[396528045,1765036709466,154.5051694,0.00013149,2]
[396528047,1765036711374,-209.64697373,0.0001315,2]
[396528049,1765036713029,-199.94850002,0.0001315,2]
[396528063,1765036715270,-190.71049722,0.0001315,2]
[396528130,1765036737216,-333.09797206,0.0001315,2]
[396528131,1765036744483,8023.0374397,0.0001305,2]
[396528132,1765036744557,5112.02177317,0.0001305,2]
[396528135,1765036745492,-250.77405588,0.0001315,2]
[396528160,1765036801356,300.0,0.00013149,2]
[396528161,1765036801434,1200.0,0.00013149,2]
[396528163,1765036803709,351.5968314,0.0001305,2]
[396528164,1765036803810,296.44174511,0.0001305,2]
[396528165,1765036804003,150.0,0.00013149,2]
[396528166,1765036804122,1141.85373656,0.0001305,2]
[396528168,1765036811435,1012.60131389,0.0001305,2]
[396528171,1765036816619,233.18535427,0.0001305,2]
[396528187,1765036852485,199.18539537,0.0001305,2]
[396528188,1765036857242,-207.65020721,0.0001315,2]
[396528189,1765036860510,-396.24953827,0.0001315,2]
[396528190,1765036864841,-156.96332126,0.0001315,2]
[396528192,1765036867098,-429.15678669,0.0001315,2]
[396528193,1765036869743,-217.98138319,0.0001315,2]
[396528194,1765036874300,-337.30969251,0.0001315,2]
[396528197,1765036887467,3.12385023,0.0001305,2]
[396528198,1765036887538,396.7731498,0.0001305,2]
[396528199,1765036893691,4303.396,0.00012887,2]
[396528200,1765036893796,157.244,0.00012887,2]
[396528208,1765036904420,1607.408,0.0001305,2]
[396528216,1765036921281,300.0,0.00013149,2]
[396528220,1765036924793,300.0,0.0001315,2]
[396528221,1765036925619,347.70556264,0.0001315,2]
[396528223,1765036926154,152.04801309,0.0001315,2]
[396528225,1765036930256,151.0,0.0001315,2]
[396528227,1765036933414,151.0,0.0001315,2]
[396528228,1765036933648,-414.55378881,0.0001315,2]
[396528229,1765036934329,-2133.43527447,0.0001315,2]
[396528230,1765036934419,151.0,0.0001315,2]
[396528231,1765036934488,-9849.01,0.0001315,2]
[396528232,1765036934708,-10000.01,0.0001315,2]
[396528233,1765036934947,-10000.01,0.0001315,2]
[396528234,1765036935242,-10000.01,0.0001315,2]
[396528235,1765036935354,-10000.01,0.0001315,2]
[396528237,1765036935558,-10000.01,0.0001315,2]
[396528238,1765036935667,-10000.01,0.0001315,2]
[396528240,1765036938795,-10000.01,0.0001315,2]
[396528241,1765036939109,-574.12855637,0.0001315,2]
[396528242,1765036939308,-8851.75288726,0.0001315,2]
[396528244,1765036941909,-500.0,0.0001315,2]
[396528245,1765036941997,-500.0,0.0001315,2]
[396528246,1765036942084,-500.0,0.0001315,2]
[396528247,1765036942167,-500.0,0.0001315,2]
[396528248,1765036942253,-500.0,0.0001315,2]
[396528249,1765036942355,-500.0,0.0001315,2]
[396528250,1765036943146,-500.0,0.0001315,2]
[396528251,1765036943230,-500.0,0.0001315,2]
[396528253,1765036943963,-3000.01,0.0001315,2]
[396528254,1765036944137,-10000.01,0.0001315,2]
[396528255,1765036944725,-500.0,0.0001315,2]
[396528256,1765036944804,-500.0,0.0001315,2]
[396528257,1765036945005,-500.0,0.0001315,2]
[396528258,1765036945344,-7500.01,0.0001315,2]
[396528259,1765036945511,317.40412382,0.00015122,7]
[396528260,1765036945609,-500.0,0.0001315,2]
[396528262,1765036945683,-500.0,0.0001315,2]
[396528263,1765036945764,-500.0,0.0001315,2]
[396528264,1765036945945,-8500.01,0.0001315,2]
[396528265,1765036946283,-500.0,0.0001315,2]
[396528266,1765036946459,-500.0,0.0001315,2]
[396528267,1765036946684,-500.0,0.0001315,2]
[396528268,1765036946697,-185.93979184,0.0001315,2]
[396528269,1765036946708,-500.0,0.0001315,2]
[396528270,1765036946720,-500.0,0.0001315,2]
[396528271,1765036946731,-6314.07020816,0.0001315,2]
[396528272,1765036946811,-500.0,0.0001315,2]
[396528273,1765036946892,-9000.01,0.0001315,2]
[396528275,1765036947058,-500.0,0.0001315,2]
[396528276,1765036947068,-9500.01,0.0001315,2]
[396528277,1765036947173,-500.0,0.0001315,2]
[396528279,1765036947248,-500.0,0.0001315,2]
[396528280,1765036947319,-500.0,0.0001315,2]
[396528282,1765036947454,-7000.01,0.0001315,2]
[396528284,1765036948631,-500.0,0.0001315,2]
[396528285,1765036948705,-500.0,0.0001315,2]
[396528286,1765036948785,-500.0,0.0001315,2]
[396528287,1765036948865,-1000.0,0.0001315,2]
[396528288,1765036948945,-500.0,0.0001315,2]
[396528289,1765036949025,-1000.0,0.0001315,2]
[396528290,1765036949529,-500.0,0.0001315,2]
[396528291,1765036949539,-1500.01,0.0001315,2]
[396528292,1765036949665,-1000.0,0.0001315,2]
[396528293,1765036949743,-9000.01,0.0001315,2]
[396528294,1765036949810,-10000.01,0.0001315,2]
[396528295,1765036949896,-1000.0,0.0001315,2]
[396528296,1765036950056,-500.0,0.0001315,2]
[396528297,1765036950065,-7500.01,0.0001315,2]
[396528299,1765036950134,-1000.0,0.0001315,2]
[396528300,1765036950143,-9000.01,0.0001315,2]
[396528301,1765036950444,-10000.01,0.0001315,2]
[396528302,1765036950537,-1000.0,0.0001315,2]
[396528303,1765036950808,-8000.01,0.0001315,2]
[396528304,1765036950910,-10000.01,0.0001315,2]
[396528305,1765036950998,-10000.01,0.0001315,2]
[396528306,1765036951166,-1000.0,0.0001315,2]
[396528307,1765036951306,-8000.01,0.0001315,2]
[396528308,1765036951408,-10000.01,0.0001315,2]
[396528310,1765036951773,-10000.01,0.0001315,2]
[396528311,1765036951965,-10000.01,0.0001315,2]
[396528312,1765036952165,-10000.01,0.0001315,2]
[396528327,1765036958193,-151.0,0.0001315,2]
[396528329,1765036958277,-556.81550109,0.0001315,2]
[396528331,1765036958372,-500.0,0.0001315,2]
[396528335,1765036958678,-7584.37899782,0.0001315,2]
[396528341,1765036959198,-10000.01,0.0001315,2]
[396528502,1765037127125,-605.28159582,0.00012983,2]
[396528506,1765037129544,-182.0,0.00012983,2]
[396528508,1765037132110,-212.04450742,0.00012983,2]
[396528510,1765037136025,-167.43040342,0.00012983,2]
[396528537,1765037202072,-300.0,0.00013049,2]
[396528540,1765037267144,190.4424743,0.00014893,7]
[396528549,1765037294052,-204.60499598,0.00012886,2]
[396528550,1765037296226,-172.11848552,0.00012886,2]
[396528551,1765037297836,-246.26697383,0.00012886,2]
[396528553,1765037301664,-231.59954467,0.00012886,2]
[396528554,1765037301733,-50.93499598,0.00012894,2]
[396528555,1765037306087,-256.0,0.00012822,2]
[396528556,1765037311831,-156.0900028,0.00012822,2]
[396528557,1765037314009,-164.83,0.00012822,2]
[396528559,1765037317732,-334.1662362,0.00012822,2]
[396528560,1765037319849,-157.992483,0.00012822,2]
[396528561,1765037326090,-232.63401562,0.00012822,2]
[396528562,1765037328427,-155.32499974,0.00012822,2]
[396528573,1765037351593,-20.36480464,0.00012822,2]
[396528574,1765037351626,-250.0,0.00012834,2]
[396528575,1765037351650,-1500.0,0.00012847,2]
[396528576,1765037351673,-101.93500402,0.00012894,2]
[396528577,1765037351699,-199.94850002,0.0001295,2]
[396528578,1765037351723,-277.35679052,0.00013018,2]
[396528579,1765037351748,-300.0,0.00013048,2]
[396528580,1765037351770,-300.0,0.00013048,2]
[396528581,1765037351797,-900.0,0.00013049,2]
[396528582,1765037351821,-300.0,0.00013049,2]
[396528583,1765037351845,-1200.0,0.00013049,2]
[396528584,1765037351868,-150.0,0.00013049,2]
[396528585,1765037351894,-500.0,0.0001305,2]
[396528586,1765037351917,-1000.0,0.0001305,2]
[396528587,1765037351939,-2009.4545,0.0001305,2]
[396528588,1765037351968,-990.9404008,0.0001305,2]
[396528589,1765037352755,-1509.0595992,0.0001305,2]
[396528590,1765037352777,-1638.0799,0.0001305,2]
[396528591,1765037352803,-199.94850002,0.0001305,2]
[396528592,1765037352831,-6652.91200078,0.0001305,2]
[396528593,1765037353406,-6150.50946656,0.0001305,2]
[396528594,1765037353430,-860.07946109,0.0001305,2]
[396528595,1765037353459,-500.0,0.0001307,2]
[396528596,1765037353488,-500.0,0.0001307,2]
[396528597,1765037353516,-500.0,0.0001307,2]
[396528598,1765037353544,-500.0,0.0001307,2]
[396528599,1765037353571,-500.0,0.0001307,2]
[396528600,1765037353599,-489.41107235,0.0001307,2]
[396528601,1765037353944,-10.58892765,0.0001307,2]
[396528602,1765037353973,-500.0,0.0001307,2]
[396528603,1765037354002,-500.0,0.0001307,2]
[396528604,1765037354033,-500.0,0.0001307,2]
[396528605,1765037354061,-174.18796349,0.0001307,2]
[396528606,1765037354090,-500.0,0.0001307,2]
[396528607,1765037354118,-500.0,0.0001307,2]
[396528608,1765037354147,-500.0,0.0001307,2]
[396528609,1765037354174,-500.0,0.0001307,2]
[396528610,1765037354202,-300.0,0.0001307,2]
[396528611,1765037354223,-5679.42,0.00013071,2]
[396528612,1765037354245,-227.42679122,0.00013149,2]
[396528613,1765037354266,-108.37631764,0.00013149,2]
[396528614,1765037354507,-319.83225005,0.00013149,2]
[396528615,1765037354537,-2502.194013,0.00013149,2]
[396528616,1765037354561,-301.69828506,0.0001315,2]
[396528617,1765037354583,-500.0,0.0001315,2]
[396528618,1765037354604,-500.0,0.0001315,2]
[396528619,1765037354627,-500.0,0.0001315,2]
[396528620,1765037354649,-500.0,0.0001315,2]
[396528621,1765037354671,-500.0,0.0001315,2]
[396528622,1765037354692,-500.0,0.0001315,2]
[396528623,1765037354718,-500.0,0.0001315,2]
[396528624,1765037354760,-500.0,0.0001315,2]
[396528625,1765037354801,-500.0,0.0001315,2]
[396528626,1765037354843,-500.0,0.0001315,2]
[396528627,1765037354883,-500.0,0.0001315,2]
[396528628,1765037354921,-500.0,0.0001315,2]
[396528629,1765037354955,-500.0,0.0001315,2]
[396528630,1765037354978,-376.27545189,0.0001315,2]
[396528631,1765037355523,-123.72454811,0.0001315,2]
[396528632,1765037355548,-500.0,0.0001315,2]
[396528633,1765037355572,-500.0,0.0001315,2]
[396528634,1765037355597,-500.0,0.0001315,2]
[396528635,1765037355624,-200.0,0.0001315,2]
[396528636,1765037355647,-358.93157713,0.0001315,2]
[396528637,1765037355670,-277.1088016,0.0001315,2]
[396528638,1765037355695,-500.0,0.0001315,2]
[396528639,1765037355725,-500.0,0.0001315,2]
[396528640,1765037355749,-500.0,0.0001315,2]
[396528641,1765037355775,-500.0,0.0001315,2]
[396528642,1765037355802,-500.0,0.0001315,2]
[396528643,1765037355834,-500.0,0.0001315,2]
[396528644,1765037355862,-500.0,0.0001315,2]
[396528645,1765037355889,-500.0,0.0001315,2]
[396528646,1765037355917,-500.0,0.0001315,2]
[396528647,1765037355946,-500.0,0.0001315,2]
[396528648,1765037355971,-500.0,0.0001315,2]
[396528649,1765037355996,-500.0,0.0001315,2]
[396528650,1765037356025,-500.0,0.0001315,2]
[396528651,1765037356051,-345.13115989,0.0001315,2]
[396528652,1765037356076,-500.0,0.0001315,2]
[396528653,1765037356104,-195.10391327,0.0001315,2]
[396528654,1765037358415,-304.89608673,0.0001315,2]
[396528655,1765037358440,-166.90202794,0.0001315,2]
[396528656,1765037358464,-500.0,0.0001315,2]
[396528657,1765037358488,-500.0,0.0001315,2]
[396528658,1765037358511,-500.0,0.0001315,2]
[396528659,1765037358535,-151.0,0.0001315,2]
[396528660,1765037358559,-500.0,0.0001315,2]
[396528661,1765037358581,-151.0,0.0001315,2]
[396528662,1765037358603,-500.0,0.0001315,2]
[396528663,1765037358627,-151.0,0.0001315,2]
[396528664,1765037358651,-500.0,0.0001315,2]
[396528665,1765037358675,-151.0,0.0001315,2]
[396528666,1765037358697,-200.0,0.0001315,2]
[396528667,1765037358720,-500.0,0.0001315,2]
[396528668,1765037358745,-151.0,0.0001315,2]
[396528669,1765037358768,-500.0,0.0001315,2]
[396528670,1765037358792,-151.0,0.0001315,2]
[396528671,1765037358817,-500.0,0.0001315,2]
[396528672,1765037358840,-151.0,0.0001315,2]
[396528673,1765037358864,-500.0,0.0001315,2]
[396528674,1765037358891,-151.0,0.0001315,2]
[396528675,1765037358916,-500.0,0.0001315,2]
[396528676,1765037358943,-151.0,0.0001315,2]
[396528677,1765037358968,-151.0,0.0001315,2]
[396528678,1765037358994,-151.0,0.0001315,2]
[396528679,1765037359018,-151.0,0.0001315,2]
[396528680,1765037359041,-151.0,0.0001315,2]
[396528681,1765037359064,-151.0,0.0001315,2]
[396528682,1765037359087,-151.0,0.0001315,2]
[396528683,1765037359111,-151.0,0.0001315,2]
[396528684,1765037359135,-151.0,0.0001315,2]
[396528685,1765037359168,-151.0,0.0001315,2]
[396528686,1765037359192,-151.0,0.0001315,2]
[396528687,1765037359217,-151.0,0.0001315,2]
[396528688,1765037359241,-151.0,0.0001315,2]
[396528689,1765037359267,-151.0,0.0001315,2]
[396528690,1765037359290,-151.0,0.0001315,2]
[396528691,1765037359317,-151.0,0.0001315,2]
[396528692,1765037359344,-151.0,0.0001315,2]
[396528693,1765037359367,-53.20188533,0.0001315,2]
[396528694,1765037360724,-97.79811467,0.0001315,2]
[396528695,1765037360748,-151.0,0.0001315,2]
[396528696,1765037360775,-151.0,0.0001315,2]
[396528697,1765037360798,-151.0,0.0001315,2]
[396528698,1765037360821,-151.0,0.0001315,2]
[396528699,1765037360844,-151.0,0.0001315,2]
[396528700,1765037360867,-151.0,0.0001315,2]
[396528701,1765037360906,-8996.20188533,0.0001315,2]
[396528703,1765037361897,-10000.0,0.0001315,2]
[396528705,1765037362816,-10000.0,0.0001315,2]
[396528706,1765037363113,-10000.0,0.0001315,2]
[396528707,1765037364953,-10000.0,0.0001315,2]
[396528708,1765037367010,-10000.0,0.0001315,2]
[396528709,1765037368554,-10000.0,0.0001315,2]
[396528712,1765037398316,-4988.0,0.0001305,2]
[396528713,1765037398820,-200.72326625,0.0001305,2]
[396528714,1765037401158,-300.0,0.0001305,2]
[396528715,1765037401354,300.0,0.00013049,2]
[396528716,1765037401439,1200.0,0.00013049,2]
[396528717,1765037401758,300.0,0.00013049,2]
[396528718,1765037403528,-217.75805945,0.0001305,2]
[396528719,1765037404094,257.0,0.00013049,2]
[396528720,1765037406441,-542.16934686,0.0001305,2]
[396528722,1765037410472,-222.32551363,0.0001305,2]
[396528725,1765037412857,-300.0,0.0001305,2]
[396528730,1765037417416,-403.99664958,0.0001305,2]
[396528731,1765037419675,-217.7046633,0.0001305,2]
[396528732,1765037422324,-232.68572867,0.0001305,2]
[396528734,1765037424469,-260.0,0.0001305,2]
[396528736,1765037430886,-573.67783679,0.0001305,2]
[396528739,1765037432335,-13349.70555077,0.0001305,2]
[396528740,1765037432366,-727.65809693,0.0001305,2]
[396528741,1765037432380,-669.01695779,0.0001305,2]
[396528742,1765037432427,-11951.19070884,0.0001305,2]
[396528743,1765037432447,-928.52587715,0.0001305,2]
[396528744,1765037432462,-2000.0,0.0001305,2]
[396528745,1765037432476,-10835.42365284,0.0001305,2]
[396528746,1765037432491,-17530.03821625,0.0001305,2]
[396528747,1765037432505,-1137.92687083,0.0001305,2]
[396528748,1765037432540,-990.97939,0.0001305,2]
[396528749,1765037432555,-3424.78506904,0.0001305,2]
[396528750,1765037432589,-560.95382863,0.0001305,2]
[396528768,1765037435184,-272.32229199,0.0001305,2]
[396528769,1765037437900,-317.86186947,0.0001305,2]
[396528771,1765037438398,-1680.96,0.0001305,2]
[396528772,1765037438410,-9401.64,0.0001305,2]
[396528773,1765037438423,-3039.84169753,0.0001305,2]
[396528774,1765037438434,-2418.07525,0.0001305,2]
[396528775,1765037438581,-3307.91099469,0.0001305,2]
[396528776,1765037438593,-753.25136983,0.0001305,2]
[396528777,1765037438604,-3471.61423684,0.0001305,2]
[396528782,1765037440328,-2663.2606002,0.0001305,2]
[396528784,1765037440518,-8639.14209107,0.0001305,2]
[396528785,1765037440530,-907.96447581,0.0001305,2]
[396528786,1765037440584,-15004.51596528,0.0001305,2]
[396528787,1765037440595,-37123.6216,0.0001305,2]
[396528788,1765037440607,-902.7055161,0.0001305,2]
[396528789,1765037440618,-1859.2772069,0.0001305,2]
[396528793,1765037442559,-1.7e-07,0.0001305,2]
[396528794,1765037442571,-1750.0,0.0001305,2]
[396528795,1765037442602,-17240.94778514,0.0001305,2]
[396528796,1765037442613,-731.12533051,0.0001305,2]
[396528797,1765037442625,-1348.58198648,0.0001305,2]
[396528798,1765037442636,-1268.79471161,0.0001305,2]
[396528799,1765037442670,-327.84001672,0.0001305,2]
[396528810,1765037444687,-88294.85358492,0.0001305,2]
[396528811,1765037444743,-250307.54308565,0.0001305,2]
[396528818,1765037446417,-4068.07711445,0.0001305,2]
[396528819,1765037446428,-7725.5466,0.0001305,2]
[396529371,1765037452408,760.8721162,0.0001295,2]
[396529839,1765037475788,978.143177,0.00012984,2]
[396529843,1765037514828,304.2795,0.0001285,2]
[396529844,1765037517158,-1566.71033336,0.0001305,2]
[396529845,1765037521519,150.0,0.00013049,2]
[396529846,1765037521690,300.0,0.00013049,2]
[396529847,1765037524214,300.0,0.00013049,2]
[396529848,1765037524763,200.0,0.00013018,2]
[396529849,1765037525375,207.4,0.00013018,2]
[396529850,1765037525994,157.57578229,0.00013018,2]
[396529851,1765037526290,214.78717192,0.00013049,2]
[396529852,1765037531419,578.20924308,0.0001305,2]
[396529853,1765037532086,-280.66461369,0.0001305,2]
[396529854,1765037534049,300.0,0.0001305,2]
[396529855,1765037542594,500.0,0.00013049,2]
[396529856,1765037542715,500.0,0.00013049,2]
[396529857,1765037542819,500.0,0.00013049,2]
[396529858,1765037542938,300.0,0.00013049,2]
[396529860,1765037547273,-594.33669816,0.0001305,2]
[396529863,1765037548974,176.08919992,0.00013049,2]
[396529864,1765037549083,-290.59023546,0.0001305,2]
[396529872,1765037558896,181.51486183,0.00013049,2]
[396529873,1765037559158,500.0,0.00013049,2]
[396529879,1765037576878,834.13894776,0.00013049,2]
[396529880,1765037576942,365.86105224,0.00013049,2]
[396529882,1765037592148,-311.51431994,0.0001305,2]
[396529883,1765037597216,-271.42053813,0.0001305,2]
[396529884,1765037600014,-428.1568415,0.0001305,2]
[396529886,1765037602718,-197.25401558,0.0001305,2]
[396529887,1765037605042,-401.05276483,0.0001305,2]
[396529888,1765037607883,-505.008021,0.0001305,2]
[396529890,1765037612309,-250.0,0.0001305,2]
[396529891,1765037622092,-329.62246528,0.0001305,2]
[396529892,1765037634039,505.008021,0.00012984,2]
[396529893,1765037641392,300.0,0.00013049,2]
[396529895,1765037653924,-302.59788116,0.0001305,2]
[396529900,1765037682257,-338.37101263,0.0001305,2]
[396529905,1765037701498,150.0,0.00013049,2]
[396529906,1765037701679,300.0,0.00013049,2]
[396529908,1765037701778,1200.0,0.00013049,2]
[396529909,1765037701873,300.0,0.00013049,2]
[396529914,1765037712154,-296.70691283,0.0001305,2]
[396529924,1765037735651,164.65002493,0.0001295,2]
[396529933,1765037761710,300.0,0.00013049,2]
[396529935,1765037772937,6414.49090183,0.0001295,2]
[396529936,1765037773015,5205.13789532,0.0001295,2]
[396529946,1765037802640,-266.52476134,0.0001305,2]
[396529947,1765037804838,-176.2579397,0.0001305,2]
[396529949,1765037807684,-256.4503084,0.0001305,2]
[396529950,1765037809938,-270.59201047,0.0001305,2]
[396529951,1765037811606,-281.8735946,0.0001305,2]
[396529954,1765037813487,-183.17123443,0.0001305,2]
[396529961,1765037816939,-377.49156046,0.0001305,2]
[396529962,1765037818620,-196.79562983,0.0001305,2]
[396529963,1765037820284,-387.36223032,0.0001305,2]
[396529964,1765037822217,-410.6718391,0.0001305,2]
[396529965,1765037825093,-171.08071791,0.0001305,2]
[396529966,1765037827270,-241.32,0.0001305,2]
[396529967,1765037831705,291.14799181,0.0001305,2]
[396529968,1765037832844,-305.90846661,0.0001305,2]
[396529969,1765037834554,661.50054633,0.0001305,2]
[396529970,1765037835298,311.1,0.0001305,2]
[396529971,1765037835554,-219.49340791,0.0001305,2]
[396529974,1765037836504,233.34,0.0001295,2]
[396529975,1765037837694,216.12575462,0.0001305,2]
[396529976,1765037837797,-332.31856506,0.0001305,2]
[396529977,1765037839978,-194.9915637,0.0001305,2]
[396529980,1765037841572,-350.07233169,0.0001305,2]
[396529981,1765037841696,500.0,0.0001305,2]
[396529982,1765037842244,500.0,0.0001305,2]
[396529983,1765037842850,500.0,0.0001305,2]
[396529984,1765037843047,-213.03523409,0.0001305,2]
[396529985,1765037843468,500.0,0.0001305,2]
[396529987,1765037844062,151.0,0.0001305,2]
[396529988,1765037844159,500.0,0.0001305,2]
[396529989,1765037844683,151.0,0.0001305,2]
[396529990,1765037844778,500.0,0.0001305,2]
[396529991,1765037845311,151.0,0.0001305,2]
[396529992,1765037845413,500.0,0.0001305,2]
[396529993,1765037845945,151.0,0.0001305,2]
[396529994,1765037846036,500.0,0.0001305,2]
[396529995,1765037846572,151.0,0.0001305,2]
[396529996,1765037846660,500.0,0.0001305,2]